fUSD/lending_fUSD_20260214
["ID","MTS","AMOUNT","RATE_DAILY","PERIOD"]
[405352947,1771056650382,-500.0,0.00021258,2]
[405352948,1771056650391,-1500.0,0.00021297,7]
[405352949,1771056650400,-636.13,0.00021307,2]
[405352950,1771056650409,-263.32697189,0.00021322,2]
[405352951,1771056650418,-1500.0,0.0002137,7]
[405352952,1771056650427,-162.39873872,0.00021448,2]
[405352953,1771056650436,-1100.0,0.00021452,7]
[405352954,1771056650445,-1500.0,0.00021598,7]
[405352955,1771056650454,-500.0,0.00021643,2]
[405352956,1771056650463,-2000.0,0.00021644,2]
[405352957,1771056650472,-1279.93866255,0.00021644,2]
[405352958,1771056650481,-2000.0,0.00021644,2]
[405352959,1771056650490,-1732.64573907,0.00021644,2]
[405352960,1771056650500,-186.07806146,0.00021644,2]
[405352961,1771056650511,-167.2,0.00021654,2]
[405352962,1771056650520,-2000.0,0.0002189,2]
[405352963,1771056650530,-2001.7072,0.0002189,2]
[405352964,1771056650539,-2000.0,0.0002189,2]
[405352965,1771056650548,-216.074146,0.00021918,2]
[405352966,1771056650558,-5000.0,0.00021918,2]
[405352967,1771056650567,-700.0,0.0002197,2]
[405352968,1771056650577,-400.0,0.0002197,2]
[405352969,1771056650586,-126871.52189964,0.00022,4]
[405352970,1771056650597,-391.60987072,0.00022,2]
[405352971,1771056650606,-151.0,0.00022,2]
[405352972,1771056650747,-200.12415686,0.00022,2]
[405352973,1771056650766,-1028.369,0.00022,7]
[405352974,1771056650776,-999.0,0.00022,2]
[405352975,1771056650785,-1500.0,0.00022,7]
[405352976,1771056650795,-4282.48279186,0.00022,4]
[405352977,1771056650805,-227.59743472,0.00022,2]
[405352978,1771056650814,-381.0,0.00022,2]
[405352979,1771056650824,-381.0,0.00022,2]
[405352980,1771056650834,-381.0,0.00022,2]
[405352981,1771056650844,-381.0,0.00022,2]
[405352982,1771056650854,-381.0,0.00022,2]
[405352983,1771056650864,-381.0,0.00022,2]
[405352984,1771056650874,-410.0,0.00022,2]
[405352985,1771056650884,-150.0,0.00022,2]
[405352986,1771056650894,-150.0,0.00022,2]
[405352987,1771056650904,-150.52139657,0.00022,2]
[405352988,1771056650913,-150.0,0.00022,2]
[405352989,1771056650923,-150.0,0.00022,2]
[405352990,1771056650936,-150.0,0.00022,2]
[405352991,1771056650945,-150.0,0.00022,2]
[405352992,1771056650955,-150.0,0.00022,2]
[405352994,1771056650964,-150.0,0.00022,2]
[405352996,1771056650974,-151.52473681,0.00022,2]
[405352998,1771056650984,-150.0,0.00022,2]
[405353000,1771056650994,-150.0,0.00022,2]
[405353001,1771056651005,-150.0,0.00022,2]
[405353002,1771056651014,-150.0,0.00022,2]
[405353003,1771056651024,-150.11166198,0.00022,2]
[405353004,1771056651033,-150.0,0.00022,2]
[405353005,1771056651043,-150.0,0.00022,2]
[405353006,1771056651052,-176.7327853,0.00022127,8]
[405353007,1771056651062,-152.0,0.00022173,5]
[405353008,1771056651071,-2500.0,0.00022192,2]
[405353009,1771056651081,-516.89622182,0.00022192,2]
[405353010,1771056651090,-895.138469,0.00022241,30]
[405353011,1771056651100,-896.97053916,0.00022286,2]
[405353012,1771056651110,-1442.1,0.00022423,2]
[405353013,1771056651119,-242.46,0.000225,7]
[405353014,1771056651129,-167.2,0.0002252,2]
[405353015,1771056651138,-150.0,0.00022546,4]
[405353016,1771056651147,-1100.0,0.00022548,7]
[405353017,1771056651156,-500.0,0.00022548,7]
[405353018,1771056651165,-500.0,0.00022548,7]
[405353019,1771056651175,-1000.0,0.00022608,2]
[405353020,1771056651183,-3000.0,0.0002274,2]
[405353021,1771056651192,-150.0,0.000229,30]
[405353022,1771056651202,-507.71795094,0.00022926,2]
[405353023,1771056651211,-160.0,0.00023,2]
[405353024,1771056651220,-2250.35786804,0.00023027,2]
[405353025,1771056651229,-200.12415686,0.0002306,17]
[405353026,1771056651238,-7825.61521685,0.00023085,2]
[405353027,1771056651247,-150.0,0.00023092,4]
[405353028,1771056651257,-150.0,0.00023149,4]
[405353029,1771056651266,-162.39873872,0.00023236,2]
[405353030,1771056651275,-636.13,0.00023244,2]
[405353031,1771056651286,-2216.45995607,0.00023288,2]
[405353032,1771056651297,-152.0,0.00023362,6]
[405353033,1771056651306,-167.2,0.00023387,2]
[405353034,1771056651315,-150.0,0.00023456,4]
[405353035,1771056651325,-186.82956105,0.000235,2]
[405353036,1771056651335,-3846.47435053,0.000235,30]
[405353037,1771056651344,-1208.0,0.00023527,2]
[405353038,1771056651353,-918.0,0.00023527,2]
[405353039,1771056651363,-5963.0,0.00023527,2]
[405353040,1771056651373,-2450.0,0.00023527,2]
[405353041,1771056651382,-150.0,0.00023638,4]
[405353042,1771056651391,-1100.0,0.00023644,7]
[405353043,1771056651401,-242.46,0.000238,7]
[405353044,1771056651411,-150.0,0.0002382,4]
[405353045,1771056651420,-160.0,0.00024,7]
[405353046,1771056651429,-523.0,0.00024083,6]
[405353047,1771056651438,-200.12415686,0.00024119,32]
[405353048,1771056651448,-150.0,0.00024184,4]
[405353049,1771056651457,-150.0,0.00024184,4]
[405353050,1771056651466,-150.0,0.00024184,4]
[405353051,1771056651475,-150.0,0.00024184,4]
[405353052,1771056651484,-500.0,0.0002423,2]
[405353053,1771056651493,-500.0,0.0002423,2]
[405353054,1771056651502,-150.0,0.00024231,2]
[405353055,1771056651512,-10653.3932611,0.0002429,7]
[405353056,1771056651521,-150.0,0.00024298,4]
[405353057,1771056651530,-257.23273586,0.000243,30]
[405353058,1771056651541,-164.0,0.00024326,3]
[405353059,1771056651550,-558.0,0.0002443,10]
[405353060,1771056651559,-3692.78410313,0.00024463,7]
[405353075,1771057746315,500.0,0.000129,2]
[405353076,1771057757280,500.0,0.000129,2]
[405353077,1771057767500,500.0,0.000129,2]
[405353086,1771057832036,-256.0,0.00012955,2]
[405353087,1771057832047,-250.0,0.00012955,2]
[405353088,1771057832059,-164.29,0.00012955,2]
[405353089,1771057832068,-920.05049926,0.00013414,2]
[405353090,1771057832080,-614.34950074,0.00013414,2]
[405353091,1771057832091,-164.29,0.00013881,2]
[405353092,1771057832101,-1200.0,0.0001425,2]
[405353093,1771057832111,-250.0,0.00014251,2]
[405353094,1771057832121,-250.0,0.00014251,2]
[405353095,1771057832130,-1063.29674941,0.00014251,2]
[405353096,1771057832141,-218.0,0.00014805,2]
[405353097,1771057832151,-450.0,0.00014806,2]
[405353098,1771057832161,-164.29,0.00014806,2]
[405353099,1771057832171,-150.0,0.00014955,7]
[405353100,1771057832185,-1680.0,0.00015674,2]
[405353101,1771057832197,-300.0,0.0001573,2]
[405353102,1771057832207,-164.29,0.00015731,2]
[405353103,1771057832217,-9999.99,0.00015731,2]
[405353104,1771057832228,-4119.19,0.00015731,2]
[405353105,1771057832240,-14629.91,0.00015731,2]
[405353106,1771057832256,-8761.19,0.00015731,2]
[405353107,1771057832267,-150.99,0.00015731,2]
[405353108,1771057832278,-999.99,0.00015731,2]
[405353109,1771057832295,-398.96,0.00015731,2]
[405353110,1771057832311,-198.92,0.00016237,2]
[405353111,1771057832321,-168.48,0.00016501,2]
[405353112,1771057832330,-320.8383729,0.00016647,2]
[405353113,1771057832340,-9999.99,0.00016657,2]
[405353115,1771057832351,-23720.35,0.00016657,2]
[405353116,1771057832361,-150.99,0.00016657,2]
[405353117,1771057832371,-2083.44,0.00016657,2]
[405353118,1771057832382,-299.99,0.00016657,4]
[405353119,1771057832395,-164.29,0.00016657,2]
[405353120,1771057832406,-510.0,0.00016847,2]
[405353121,1771057832641,-200.0,0.0001688,2]
[405353122,1771057832659,-500.0,0.00016908,2]
[405353123,1771057832669,-151.0,0.00016997,2]
[405353124,1771057832680,-500.0,0.00016999,2]
[405353125,1771057832690,-225509.59932861,0.00017,2]
[405353126,1771057832700,-315.82674597,0.00017118,2]
[405353127,1771057832710,-242.86,0.00017223,2]
[405353128,1771057832720,-150.0,0.00017322,2]
[405353129,1771057832730,-6552.44411564,0.00017408,2]
[405353130,1771057832740,-500.0,0.00017507,2]
[405353131,1771057832750,-171.39651875,0.00017507,2]
[405353132,1771057832759,-159.7,0.00017507,2]
[405353133,1771057832768,-87121.70829226,0.00017508,2]
[405353134,1771057832780,-135250.44405823,0.00017508,2]
[405353135,1771057832791,-29610.87267612,0.00017508,2]
[405353136,1771057832803,-37209.52132904,0.00017508,2]
[405353137,1771057832814,-1254.41808677,0.00017508,2]
[405353138,1771057832825,-960.98380572,0.00017508,2]
[405353139,1771057832838,-341.348914,0.00017508,2]
[405353140,1771057832862,-2413.61553984,0.00017508,2]
[405353141,1771057832873,-720.02564083,0.00017508,2]
[405353142,1771057832895,-405.95984743,0.00017508,2]
[405353143,1771057832931,-1726.8840699,0.00017508,2]
[405353144,1771057832944,-2277.12736625,0.00017508,2]
[405353151,1771057838253,-361.18778429,0.00017508,2]
[405353152,1771057838268,-346.22909034,0.00017508,2]
[405353161,1771057840571,-291125.51309898,0.00017508,2]
[405353162,1771057840581,-2500.0,0.00017508,2]
[405353163,1771057840591,-155.31383889,0.00017508,2]
[405353164,1771057840600,-1645.9921951,0.00017508,2]
[405353165,1771057840610,-2855.41140526,0.00017508,2]
[405353166,1771057840619,-292.55938226,0.00017508,2]
[405353167,1771057840629,-164.29,0.00017582,2]
[405353168,1771057840638,-974.0,0.00017589,2]
[405353169,1771057840647,-13943.0,0.00017589,2]
[405353170,1771057840656,-1081.6,0.00017591,2]
[405353171,1771057840666,-200.0,0.00017597,2]
[405353172,1771057840676,-500.0,0.00017597,2]
[405353173,1771057840685,-160.0,0.00017605,2]
[405353174,1771057840695,-500.0,0.00017607,2]
[405353175,1771057840705,-193.21122953,0.00017607,2]
[405353176,1771057840714,-434.08957952,0.00017607,2]
[405353177,1771057840723,-500.0,0.00017607,2]
[405353178,1771057840734,-666.0,0.00017607,2]
[405353179,1771057840743,-166.7337,0.00017608,2]
[405353180,1771057840752,-80673.5967,0.00017608,2]
[405353181,1771057840762,-886.032,0.00017707,2]
[405353182,1771057840772,-521.59491122,0.00017707,2]
[405353183,1771057840782,-500.0,0.00017707,2]
[405353184,1771057840791,-500.0,0.00017707,2]
[405353185,1771057840803,-500.0,0.00017707,2]
[405353186,1771057840811,-500.0,0.00017707,2]
[405353187,1771057840821,-5000.0,0.00017808,2]
[405353188,1771057840830,-528.38,0.00017808,2]
[405353189,1771057840839,-500.0,0.00017808,2]
[405353190,1771057840849,-500.0,0.00017808,2]
[405353191,1771057840858,-500.0,0.00017808,2]
[405353192,1771057840866,-500.0,0.00017808,2]
[405353193,1771057840877,-500.0,0.00017808,2]
[405353194,1771057840886,-500.0,0.00017808,2]
[405353195,1771057840895,-500.0,0.00017808,2]
[405353196,1771057840905,-500.0,0.00017808,2]
[405353197,1771057840914,-500.0,0.00017808,2]
[405353198,1771057840924,-500.0,0.00017808,2]
[405353199,1771057840934,-500.0,0.00017808,2]
[405353200,1771057840945,-500.0,0.00017808,2]
[405353201,1771057840955,-500.0,0.00017808,2]
[405353202,1771057840965,-801.11397406,0.00017808,2]
[405353203,1771057840975,-500.0,0.00017881,2]
[405353204,1771057840984,-2742.50456771,0.000179,2]
[405353205,1771057840993,-2742.50456771,0.000179,2]
[405353206,1771057841003,-162.39873872,0.00017948,2]
[405353207,1771057841012,-123183.76691327,0.00018,2]
[405353208,1771057841021,-151.0,0.00018,2]
[405353209,1771057841030,-151.0,0.00018,2]
[405353210,1771057841039,-151.0,0.00018,2]
[405353211,1771057841049,-528.38,0.00018082,2]
[405353212,1771057841059,-2742.50456771,0.00018114,2]
[405353213,1771057841068,-528.38,0.00018356,2]
[405353214,1771057841079,-164.29,0.00018507,2]
[405353215,1771057841088,-168.48,0.00018564,2]
[405353216,1771057841099,-2742.50456771,0.00018609,2]
[405353217,1771057841109,-1645.99219509,0.0001861,2]
[405353218,1771057841119,-528.38,0.0001863,2]
[405353219,1771057841130,-5800.0,0.00018678,2]
[405353220,1771057841140,-378.93240158,0.00018685,2]
[405353221,1771057841149,-5800.0,0.00018686,2]
[405353222,1771057841159,-5800.0,0.00018686,2]
[405353223,1771057841168,-5800.0,0.00018695,2]
[405353224,1771057841178,-5800.0,0.00018695,2]
[405353225,1771057841188,-173.43456991,0.00018793,2]
[405353226,1771057841199,-918.0,0.00018854,2]
[405353227,1771057841208,-1204.0,0.00018854,2]
[405353228,1771057841219,-528.38610435,0.00018904,2]
[405353229,1771057841230,-523.0,0.00019,2]
[405353230,1771057841240,-1081.6,0.00019012,2]
[405353231,1771057841249,-5513.0,0.00019021,2]
[405353232,1771057841258,-2742.50456771,0.00019104,2]
[405353233,1771057841268,-6552.44411563,0.00019471,2]
[405353234,1771057841280,-2742.50456771,0.000196,2]
[405353235,1771057841290,-1645.99219509,0.00019712,2]
[405353236,1771057841301,-151.11494194,0.0002,2]
[405353237,1771057841312,-157.89141156,0.0002,2]
[405353238,1771057841322,-504.47017576,0.0002,2]
[405353239,1771057841332,-500.0,0.0002,2]
[405353240,1771057841342,-502.06344628,0.0002,2]
[405353241,1771057841352,-500.0,0.0002,2]
[405353242,1771057841362,-2742.50456771,0.00020095,2]
[405353243,1771057841371,-500.0,0.00020176,2]
[405353244,1771057841381,-294.0,0.00020176,2]
[405353245,1771057841390,-304.63077058,0.00020327,2]
[405353246,1771057841400,-500.0,0.00020426,2]
[405353247,1771057841410,-500.0,0.00020426,2]
[405353248,1771057841419,-500.0,0.00020426,2]
[405353249,1771057841428,-500.0,0.00020426,2]
[405353250,1771057841438,-528.32723244,0.00020426,2]
[405353251,1771057841447,-500.0,0.00020426,2]
[405353252,1771057841458,-500.0,0.00020426,2]
[405353253,1771057841468,-506.43974224,0.00020426,2]
[405353254,1771057841477,-500.0,0.00020426,2]
[405353255,1771057841486,-500.0,0.00020426,2]
[405353256,1771057841495,-500.0,0.00020426,2]
[405353257,1771057841505,-500.0,0.00020426,2]
[405353258,1771057841514,-500.0,0.00020426,2]
[405353259,1771057841524,-1081.6,0.00020432,2]
[405353260,1771057841536,-500.0,0.00020447,2]
[405353261,1771057841546,-503.6621312,0.00020548,2]
[405353262,1771057841555,-1000.0,0.00020548,2]
[405353263,1771057841566,-2855.41140525,0.0002055,2]
[405353264,1771057841575,-2742.50456771,0.00020591,2]
[405353265,1771057841585,-168.48,0.00020627,2]
[405353266,1771057841594,-1645.99219509,0.00020814,2]
[405353267,1771057841604,-476.0,0.00020998,2]
[405353268,1771057841613,-2742.50456771,0.00021086,2]
[405353269,1771057841623,-1498.87033063,0.00021096,2]
[405353270,1771057841633,-292.55938224,0.00021286,2]
[405353271,1771057841642,-6552.44411563,0.00021535,2]
[405353272,1771057841651,-150.0,0.0002157,2]
[405353273,1771057841661,-2742.50456771,0.00021581,2]
[405353274,1771057841670,-317.0,0.0002182,2]
[405353275,1771057841680,-1081.6,0.00021853,2]
[405353276,1771057841689,-1645.99219509,0.00021916,2]
[405353277,1771057841698,-1000.0,0.00021999,7]
[405353278,1771057841708,-1000.0,0.00021999,7]
[405353279,1771057841719,-1000.0,0.00022,7]
[405353280,1771057841729,-1000.0,0.00022,7]
[405353281,1771057841739,-151.54,0.00022,7]
[405353282,1771057841749,-151.0,0.00022,2]
[405353283,1771057841758,-240830.83,0.00022,2]
[405353284,1771057841767,-2176.4599104,0.00022,2]
[405353285,1771057841777,-151.0,0.00022,2]
[405353286,1771057841787,-151.0,0.00022,2]
[405353287,1771057841798,-2742.50456771,0.00022077,2]
[405353288,1771057841807,-841.0,0.00022222,2]
[405353289,1771057841817,-162.39873872,0.00022435,2]
[405353290,1771057841827,-168.48,0.00022689,2]
[405353291,1771057841837,-800.0,0.00022788,8]
[405353292,1771057841848,-800.0,0.00022788,8]
[405353293,1771057841858,-800.0,0.00022788,8]
[405353294,1771057841867,-800.0,0.00022788,8]
[405353295,1771057841877,-800.0,0.00022788,8]
[405353296,1771057841886,-800.0,0.00022788,8]
[405353297,1771057841896,-800.0,0.00022788,8]
[405353298,1771057841905,-800.0,0.00022788,8]
[405353299,1771057841915,-500.0,0.00022819,7]
[405353300,1771057841924,-500.0,0.00022819,7]
[405353301,1771057841934,-800.0,0.00022819,7]
[405353302,1771057841943,-160.0,0.00023,2]
[405353303,1771057841953,-1645.99219509,0.00023019,2]
[405353304,1771057841963,-1081.6,0.00023273,2]
[405353305,1771057841973,-597.98035944,0.00023421,2]
[405353306,1771057841982,-300.0,0.0002352,2]
[405353307,1771057841992,-300.0,0.0002352,2]
[405353308,1771057842001,-11299.8322999,0.00023521,2]
[405353309,1771057842011,-93262.4127417,0.00023521,2]
[405353310,1771057842022,-3337.2498308,0.00023521,2]
[405353311,1771057842031,-95956.6542629,0.00023521,2]
[405353317,1771057846052,-326.36613698,0.00022572,2]
[405353318,1771057846107,-2416.13843073,0.00022572,2]
[405353319,1771057846116,-12566.57958656,0.00023521,2]
[405353320,1771057846128,-4143.20000002,0.00023521,2]
[405353321,1771057846147,-254.7099998,0.00023521,2]
[405353322,1771057846158,-596.5,0.00023521,2]
[405353323,1771057846170,-969.7095,0.00023521,2]
[405353324,1771057846182,-10282.74289316,0.00023521,2]
[405353332,1771058314755,473.13,0.000115,2]
[405353351,1771058792136,-166.0465174,0.00016998,2]
[405353355,1771058937712,3004.09129084,0.00022,120]
[405353361,1771059032171,-241.0,0.00016998,2]
[405353362,1771059032181,-163.57355337,0.00016998,2]
[405353363,1771059032227,-136.42644663,0.00016998,2]
[405353364,1771059032237,-250.0,0.00016999,2]
[405353365,1771059032246,-500.0,0.00016999,2]
[405353366,1771059032256,-500.0,0.00016999,2]
[405353367,1771059032265,-500.0,0.00016999,2]
[405353368,1771059032275,-500.0,0.00016999,2]
[405353369,1771059032284,-500.0,0.00016999,2]
[405353370,1771059032294,-500.0,0.00016999,2]
[405353371,1771059032307,-500.0,0.00016999,2]
[405353372,1771059032317,-250.0,0.00017324,2]
[405353373,1771059032327,-529.76440025,0.00017407,2]
[405353374,1771059032337,-2232.91817934,0.00017407,2]
[405353375,1771059032348,-250.76518482,0.00017407,2]
[405353376,1771059032360,-254.49097928,0.00017407,2]
[405353377,1771059032370,-597.98035944,0.00017407,2]
[405353378,1771059032382,-378.93240158,0.0001744,2]
[405353379,1771059032392,-285.0,0.00017447,2]
[405353380,1771059032402,-87945.02075756,0.0001745,2]
[405353381,1771059032475,-508.0,0.0001745,2]
[405353383,1771059032495,-1207.84090024,0.0001745,2]
[405353403,1771059038305,-671.07308538,0.0001745,2]
[405353404,1771059038323,-668.24864112,0.0001745,2]
[405353405,1771059038340,-1401.9124575,0.0001745,2]
[405353406,1771059038372,-7243.67967299,0.0001745,2]
[405353407,1771059038413,-4479.16761099,0.0001745,2]
[405353408,1771059038431,-896.40182499,0.0001745,2]
[405353417,1771059040301,-5476.18889582,0.0001745,2]
[405353418,1771059040518,-696.68913994,0.0001745,2]
[405353419,1771059040569,-570862.21250592,0.0001745,2]
[405353429,1771059044862,-151.39232685,0.00017404,3]
[405353430,1771059044872,-697744.47395221,0.0001745,2]
[405353432,1771059046443,-1037.3,0.0001745,2]
[405353433,1771059046455,-4995.0,0.0001745,2]
[405353449,1771059124208,500.0,8.915e-05,2]
[405353450,1771059132193,500.0,8.915e-05,2]
[405353451,1771059134531,479.83965012,8.915e-05,2]
[405353452,1771059136211,500.0,8.915e-05,2]
[405353453,1771059136416,451.17883968,8.915e-05,2]
[405353454,1771059312589,500.0,8.915e-05,2]
[405353455,1771059317273,500.0,8.915e-05,2]
[405353456,1771059367251,500.0,8.915e-05,2]
[405353457,1771059367863,500.0,8.915e-05,2]
[405353470,1771060231302,-262.01,0.00016698,2]
[405353471,1771060231312,-500.0,0.00016707,2]
[405353472,1771060231321,-200.0,0.00016807,2]
[405353473,1771060231332,-444.99725734,0.00016998,2]
[405353474,1771060231367,-163.95274266,0.00016998,2]
[405353475,1771060231377,-346.13350426,0.00016999,2]
[405353476,1771060231387,-225.9901786,0.00017,2]
[405353477,1771060231399,-711.05,0.00017,2]
[405353478,1771060231411,-687.16138692,0.00017,2]
[405353479,1771060231423,-2096.41771873,0.00017,2]
[405353480,1771060231439,-1770.38071575,0.00017,2]
[405353481,1771060231452,-150.0,0.00017002,2]
[405353482,1771060231462,-252.62160106,0.00017039,2]
[405353483,1771060231471,-16850.64485514,0.00017049,2]
[405353484,1771060231483,-6779.46985046,0.00017049,2]
[405353485,1771060231494,-888.10681662,0.00017049,2]
[405353486,1771060231506,-321.55982235,0.00017049,2]
[405353487,1771060231525,-1286.0085527,0.00017049,2]
[405353488,1771060231537,-492.21212702,0.00017049,2]
[405353489,1771060231556,-347.43508066,0.00017049,2]
[405353490,1771060231568,-20213.20165074,0.00017049,2]
[405353491,1771060231579,-1427.00894998,0.00017049,2]
[405353492,1771060231632,-1295.21988168,0.00017049,2]
[405353495,1771060237415,-449.3404125,0.00017048,2]
[405353496,1771060237427,-50.6595875,0.00017048,2]
[405353497,1771060237438,-500.0,0.00017048,2]
[405353498,1771060237449,-353.86270566,0.00017048,2]
[405353499,1771060237458,-500.0,0.00017048,2]
[405353500,1771060237469,-208894.81461397,0.00017049,2]
[405353501,1771060237491,-55823.19636316,0.00017049,2]
[405353502,1771060237506,-735.44834031,0.00017049,2]
[405353503,1771060237518,-3059.22637876,0.00017049,2]
[405353607,1771060239476,-516.68074869,0.00017049,2]
[405353608,1771060239488,-434.16710599,0.00017049,2]
[405353620,1771060243796,-698783.14453956,0.00017049,2]
[405353621,1771060243851,-254.48406112,0.00017049,2]
[405353627,1771060245325,-2897.00005,0.00017049,2]
[405353628,1771060245338,-2035.0,0.00017049,2]
[405353629,1771060245691,-2324.82971995,0.00017049,2]
[405353649,1771061295548,1936.42408744,0.0001,2]
[405353650,1771061307460,776.55213472,0.0001,2]
[405353654,1771061431448,-1278.66,0.00015258,2]
[405353656,1771061431458,-1000.0,0.00016259,2]
[405353658,1771061431468,-200.0,0.0001627,2]
[405353659,1771061431477,-444.75,0.00016363,2]
[405353660,1771061431488,-3240.0,0.00016498,2]
[405353661,1771061431498,-708.825,0.00016607,2]
[405353662,1771061431507,-300.0,0.0001678,2]
[405353663,1771061431690,-300.0,0.00016781,2]
[405353664,1771061431713,-300.0,0.00016781,2]
[405353665,1771061431723,-1200.0,0.00016781,2]
[405353666,1771061431733,-300.0,0.00016781,2]
[405353667,1771061431742,-300.0,0.00016781,2]
[405353668,1771061431752,-6275.2459,0.00016782,2]
[405353669,1771061431762,-250.0,0.00016784,2]
[405353670,1771061431772,-300.0,0.00016784,2]
[405353671,1771061431782,-250.0,0.00016784,2]
[405353672,1771061431791,-5000.0,0.00016846,2]
[405353673,1771061431801,-2500.0,0.00016846,2]
[405353674,1771061431809,-605.24,0.00016945,2]
[405353675,1771061431819,-167.2,0.00016982,2]
[405353676,1771061431828,-200.0,0.00017034,2]
[405353677,1771061431837,-151.0,0.00017034,2]
[405353678,1771061431847,-500.0,0.00017034,2]
[405353679,1771061431856,-500.0,0.00017034,2]
[405353680,1771061431865,-550.0,0.00017043,2]
[405353681,1771061431875,-1000.0,0.00017043,2]
[405353682,1771061431885,-150.99,0.00017044,2]
[405353683,1771061431895,-1343.33,0.00017044,2]
[405353684,1771061431906,-9999.99,0.00017044,2]
[405353685,1771061431916,-150.99,0.00017044,2]
[405353686,1771061431926,-3834.41,0.00017044,2]
[405353687,1771061431936,-3208.15,0.00017044,2]
[405353688,1771061431946,-9999.99,0.00017044,2]
[405353689,1771061431955,-515.45,0.00017044,2]
[405353690,1771061431964,-500.0,0.00017048,2]
[405353691,1771061431973,-500.0,0.00017048,2]
[405353692,1771061431983,-524.29618187,0.00017048,2]
[405353693,1771061431993,-500.0,0.00017048,2]
[405353694,1771061432002,-500.0,0.00017048,2]
[405353695,1771061432011,-2000.0,0.00017049,2]
[405353696,1771061432020,-200.0,0.00017049,2]
[405353697,1771061432029,-254.0,0.00017164,2]
[405353698,1771061432038,-150.0,0.00017166,2]
[405353699,1771061432048,-4391.22084885,0.00017172,2]
[405353700,1771061432059,-6679.76122584,0.00017172,2]
[405353701,1771061432068,-1000.0,0.00017172,2]
[405353702,1771061432077,-605.24,0.00017219,2]
[405353703,1771061432086,-200.0,0.00017219,2]
[405353704,1771061432096,-152.0,0.00017246,2]
[405353705,1771061432106,-500.0,0.00017249,2]
[405353706,1771061432116,-164.43,0.00017249,2]
[405353707,1771061432125,-151.0,0.00017269,2]
[405353708,1771061432135,-151.0,0.00017269,2]
[405353709,1771061432144,-151.0,0.00017269,2]
[405353710,1771061432154,-644.79274948,0.00017271,2]
[405353711,1771061432163,-500.0,0.00017271,2]
[405353712,1771061432173,-500.0,0.00017271,2]
[405353713,1771061432183,-509.68,0.00017271,2]
[405353714,1771061432192,-500.0,0.00017271,2]
[405353715,1771061432202,-500.0,0.00017271,2]
[405353716,1771061432211,-500.0,0.00017271,2]
[405353717,1771061432221,-579.85,0.00017271,2]
[405353718,1771061432230,-500.0,0.00017271,2]
[405353719,1771061432239,-500.0,0.00017271,2]
[405353720,1771061432248,-500.0,0.00017271,2]
[405353721,1771061432257,-500.0,0.00017271,2]
[405353722,1771061432266,-500.0,0.00017271,2]
[405353723,1771061432275,-500.0,0.00017271,2]
[405353724,1771061432285,-500.0,0.00017271,2]
[405353725,1771061432294,-500.0,0.00017271,2]
[405353726,1771061432304,-500.0,0.00017271,2]
[405353727,1771061432316,-500.0,0.00017271,2]
[405353728,1771061432325,-500.0,0.00017271,2]
[405353729,1771061432334,-500.0,0.00017271,2]
[405353730,1771061432343,-500.0,0.00017271,2]
[405353731,1771061432352,-500.0,0.00017271,2]
[405353732,1771061432362,-466.50869984,0.00017271,2]
[405353733,1771061432371,-500.0,0.00017271,2]
[405353734,1771061432381,-500.0,0.00017271,2]
[405353735,1771061432390,-500.0,0.00017271,2]